fUSD/lending_fUSD_20251006
["ID","MTS","AMOUNT","RATE_DAILY","PERIOD"]
[389654878,1759769441023,-370.68887098,0.0002,30]
[389654879,1759769441032,-296.70496192,0.0002,2]
[389654880,1759769441042,-151.0,0.0002,2]
[389654881,1759769441052,-5291.73065257,0.0002,2]
[389654882,1759769441061,-202.67,0.0002,2]
[389654883,1759769441071,-150.0,0.0002,2]
[389654884,1759769441080,-151.0,0.0002,2]
[389654885,1759769441089,-178.086964,0.0002,2]
[389654886,1759769441098,-178.086964,0.0002,2]
[389654887,1759769441107,-178.086964,0.0002,2]
[389654888,1759769441116,-178.086964,0.0002,2]
[389654889,1759769441125,-150.0,0.0002,2]
[389654890,1759769441135,-151.0,0.0002,2]
[389654891,1759769441144,-151.0,0.0002,2]
[389654892,1759769441153,-151.0,0.0002,2]
[389654893,1759769441163,-151.0,0.0002,2]
[389654894,1759769441172,-151.0,0.0002,2]
[389654895,1759769441181,-151.0,0.0002,2]
[389654896,1759769441190,-500.0,0.0002,2]
[389654897,1759769441200,-151.0,0.0002,2]
[389654898,1759769441209,-151.0,0.0002,2]
[389654899,1759769441218,-151.0,0.0002,2]
[389654900,1759769441229,-151.0,0.0002,2]
[389654901,1759769441237,-151.0,0.0002,2]
[389654902,1759769441246,-151.0,0.0002,2]
[389654903,1759769441256,-579.0,0.0002,2]
[389654904,1759769441265,-151.0,0.0002,2]
[389654905,1759769441275,-151.0,0.0002,2]
[389654906,1759769441284,-500.0,0.0002,2]
[389654907,1759769441293,-151.0,0.0002,2]
[389654908,1759769441302,-151.0,0.0002,2]
[389654909,1759769441313,-180.137647,0.0002,2]
[389654910,1759769441322,-151.0,0.0002,2]
[389654911,1759769441330,-162.401562,0.0002,2]
[389654912,1759769441339,-169.1,0.0002,2]
[389654913,1759769441348,-151.0,0.0002,2]
[389654914,1759769441358,-500.0,0.0002,2]
[389654915,1759769441367,-1815.0,0.0002,2]
[389654916,1759769441377,-227.81125,0.0002,2]
[389654917,1759769441386,-227.81125,0.0002,2]
[389654918,1759769441395,-227.81125,0.0002,2]
[389654919,1759769441409,-500.0,0.0002,2]
[389654920,1759769441419,-227.81125,0.0002,2]
[389654921,1759769441430,-150.0,0.0002,2]
[389654922,1759769441440,-151.0,0.0002,2]
[389654923,1759769441449,-833.0,0.0002,2]
[389654924,1759769441459,-181.703194,0.0002,2]
[389654925,1759769441467,-181.703194,0.0002,2]
[389654926,1759769441476,-154.735401,0.0002,2]
[389654927,1759769441485,-181.703194,0.0002,2]
[389654928,1759769441494,-181.703194,0.0002,2]
[389654929,1759769441503,-500.0,0.0002,2]
[389654930,1759769441514,-151.0,0.0002,2]
[389654931,1759769441523,-200.0,0.0002,2]
[389654932,1759769441532,-151.0,0.0002,2]
[389654933,1759769441541,-151.0,0.0002,2]
[389654934,1759769441549,-151.0,0.0002,2]
[389654935,1759769441558,-151.0,0.0002,2]
[389654936,1759769441567,-215.882408,0.0002,2]
[389654937,1759769441577,-151.0,0.0002,2]
[389654938,1759769441586,-151.0,0.0002,2]
[389654939,1759769441594,-151.0,0.0002,2]
[389654940,1759769441603,-151.0,0.0002,2]
[389654941,1759769441612,-1414.57381,0.0002,2]
[389654942,1759769441622,-151.0,0.0002,2]
[389654943,1759769441630,-1766.48453914,0.0002,2]
[389654944,1759769441641,-150.0,0.0002,2]
[389654945,1759769441650,-151.0,0.0002,2]
[389654946,1759769441659,-151.0,0.0002,2]
[389654947,1759769441668,-151.0,0.0002,2]
[389654948,1759769441678,-370.68887098,0.0002,7]
[389654949,1759769441691,-151.0,0.0002,2]
[389654950,1759769441700,-151.0,0.0002,2]
[389654951,1759769441709,-151.0,0.0002,2]
[389654952,1759769441718,-500.0,0.0002,2]
[389654953,1759769441729,-150.0,0.0002,2]
[389654954,1759769441739,-151.0,0.0002,2]
[389654955,1759769441747,-487.0,0.0002,2]
[389654956,1759769441758,-151.0,0.0002,2]
[389654957,1759769441767,-151.0,0.0002,2]
[389654958,1759769441776,-176.514806,0.0002,2]
[389654959,1759769441785,-152.0,0.00020002,19]
[389654960,1759769441795,-9173.58280528,0.0002001,2]
[389654961,1759769441805,-5059.36524053,0.0002001,2]
[389654962,1759769441814,-2000.0,0.0002001,2]
[389654963,1759769441823,-2000.0,0.0002002,2]
[389654964,1759769441832,-9592.1653503,0.00020027,2]
[389654965,1759769441841,-2387.685863,0.0002003,2]
[389654966,1759769441850,-2520.09,0.00020044,2]
[389654967,1759769441859,-150.0,0.00020067,2]
[389654968,1759769441869,-195.75599858,0.00020071,2]
[389654969,1759769441878,-1090.0,0.00020084,2]
[389654970,1759769441887,-151.723226,0.00020105,15]
[389654971,1759769441897,-1000.0,0.00020116,2]
[389654972,1759769441906,-1025.7,0.00020133,7]
[389654973,1759769441915,-1025.7,0.00020133,7]
[389654974,1759769441924,-2253.0,0.00020138,2]
[389654975,1759769441933,-836.20321877,0.00020138,2]
[389654976,1759769441942,-484.94,0.00020138,2]
[389654977,1759769441952,-237.27999827,0.00020141,2]
[389654978,1759769441961,-150.0,0.00020142,4]
[389654979,1759769441970,-150.0,0.00020142,4]
[389654980,1759769441979,-2501.1,0.00020142,2]
[389654981,1759769441988,-150.5,0.00020157,2]
[389654982,1759769441998,-25000.0,0.00020167,2]
[389654983,1759769442007,-326.45,0.00020167,2]
[389654984,1759769442016,-257.91778498,0.00020187,2]
[389654985,1759769442026,-1000.0,0.00020189,2]
[389654986,1759769442035,-2500.05,0.00020197,2]
[389654987,1759769442044,-8484.88225556,0.000202,2]
[389654988,1759769442053,-278.80399797,0.00020212,2]
[389654989,1759769442062,-150.0,0.00020215,4]
[389654990,1759769442071,-166.0,0.00020242,120]
[389654991,1759769442081,-152.0,0.0002025,20]
[389654992,1759769442090,-9592.1653503,0.00020261,2]
[389654993,1759769442099,-174.20146184,0.00020274,2]
[389654994,1759769442108,-579.0,0.00020274,2]
[389654995,1759769442118,-500.0,0.00020274,2]
[389654996,1759769442127,-500.0,0.00020274,2]
[389654997,1759769442136,-1815.0,0.00020274,2]
[389654998,1759769442145,-500.0,0.00020274,2]
[389654999,1759769442154,-833.0,0.00020274,2]
[389655000,1759769442163,-500.0,0.00020274,2]
[389655001,1759769442172,-150.0,0.00020274,2]
[389655002,1759769442181,-500.0,0.00020274,2]
[389655003,1759769442190,-487.0,0.00020274,2]
[389655004,1759769442201,-162.380719,0.00020274,2]
[389655005,1759769442212,-320.32799767,0.00020283,2]
[389655006,1759769442222,-2071.83636455,0.0002029,5]
[389655007,1759769442232,-150.5,0.0002029,2]
[389655008,1759769442249,-37380.72838149,0.000203,2]
[389655009,1759769442263,-150.0,0.00020325,4]
[389655010,1759769442272,-150.0,0.00020325,4]
[389655011,1759769442282,-2253.0,0.00020339,2]
[389655012,1759769442291,-361.85199737,0.00020354,2]
[389655013,1759769442299,-1851.33,0.00020389,2]
[389655014,1759769442308,-150.78,0.00020391,2]
[389655015,1759769442317,-8484.88225556,0.000204,2]
[389655016,1759769442326,-208.54,0.00020401,2]
[389655017,1759769442335,-1025.7,0.00020407,7]
[389655018,1759769442344,-1025.7,0.00020407,7]
[389655019,1759769442352,-403.37599707,0.00020424,2]
[389655020,1759769442362,-229.62400354,0.00020427,2]
[389655021,1759769442371,-2269.28,0.00020475,2]
[389655022,1759769442381,-150.5,0.00020485,2]
[389655023,1759769442390,-2252.76,0.00020491,2]
[389655024,1759769442400,-444.89999676,0.00020495,2]
[389655025,1759769442409,-9592.1653503,0.00020495,2]
[389655026,1759769442419,-152.0,0.00020498,21]
[389655027,1759769442431,-151.0,0.000205,2]
[389655028,1759769442440,-151.0,0.000205,2]
[389655029,1759769442449,-151.0,0.000205,2]
[389655030,1759769442460,-151.0,0.000205,2]
[389655031,1759769442469,-151.0,0.000205,2]
[389655032,1759769442655,-4694.10804441,0.00020503,2]
[389655033,1759769442664,-150.0,0.00020508,4]
[389655034,1759769442674,-150.0,0.00020508,4]
[389655035,1759769442686,-1000.0,0.00020521,2]
[389655036,1759769442695,-1000.0,0.00020521,2]
[389655037,1759769442705,-1000.0,0.00020521,2]
[389655038,1759769442715,-1000.0,0.00020521,2]
[389655039,1759769442726,-1003.82909024,0.00020521,2]
[389655040,1759769442736,-1000.0,0.00020521,2]
[389655041,1759769442746,-1000.0,0.00020521,2]
[389655042,1759769442757,-1000.0,0.00020521,2]
[389655043,1759769442767,-359.76179104,0.00020534,2]
[389655044,1759769442777,-2253.0,0.00020541,2]
[389655045,1759769442787,-151.0,0.00020541,2]
[389655046,1759769442797,-186.004937,0.00020541,2]
[389655047,1759769442806,-204.80409,0.00020541,2]
[389655048,1759769442816,-189.9,0.00020548,2]
[389655049,1759769442825,-21201.6,0.00020548,2]
[389655050,1759769442834,-1000.0,0.00020548,2]
[389655051,1759769442844,-1000.0,0.00020548,2]
[389655052,1759769442853,-1000.0,0.00020548,2]
[389655053,1759769442862,-1000.0,0.00020548,2]
[389655054,1759769442873,-1018.0,0.00020548,2]
[389655055,1759769442882,-579.0,0.00020548,2]
[389655056,1759769442892,-500.0,0.00020548,2]
[389655057,1759769442902,-500.0,0.00020548,2]
[389655058,1759769442912,-1815.0,0.00020548,2]
[389655059,1759769442921,-500.0,0.00020548,2]
[389655060,1759769442931,-833.0,0.00020548,2]
[389655061,1759769442941,-500.0,0.00020548,2]
[389655062,1759769442951,-200.0,0.00020548,2]
[389655063,1759769442961,-500.0,0.00020548,2]
[389655064,1759769442971,-487.0,0.00020548,2]
[389655065,1759769442981,-16477.88337593,0.00020555,2]
[389655066,1759769442990,-486.42399646,0.00020566,2]
[389655067,1759769443001,-150.0,0.00020589,120]
[389655068,1759769443011,-8484.88225556,0.000206,2]
[389655069,1759769443020,-370.68887098,0.000206,30]
[389655070,1759769443029,-370.68887098,0.000206,7]
[389655071,1759769443038,-150.0,0.00020615,2]
[389655072,1759769443048,-527.94799616,0.00020636,2]
[389655073,1759769443057,-150.0,0.00020648,2]
[389655074,1759769443067,-150.0,0.00020654,4]
[389655075,1759769443076,-2500.05,0.0002067,2]
[389655076,1759769443086,-1025.7,0.00020681,7]
[389655077,1759769443095,-1025.7,0.00020681,7]
[389655078,1759769443104,-5000.0,0.00020682,2]
[389655079,1759769443114,-22351.69439235,0.000207,2]
[389655080,1759769443124,-569.47199586,0.00020707,2]
[389655081,1759769443134,-9592.1653503,0.00020729,2]
[389655082,1759769443144,-158.94,0.00020734,2]
[389655083,1759769443154,-158.3037798,0.00020736,2]
[389655084,1759769443163,-2253.0,0.00020742,2]
[389655085,1759769443173,-5000.0,0.00020744,2]
[389655086,1759769443183,-152.0,0.00020745,22]
[389655087,1759769443194,-5000.0,0.00020746,2]
[389655088,1759769443203,-321.607456,0.0002075,2]
[389655089,1759769443214,-713.728054,0.0002075,2]
[389655090,1759769443225,-220.547291,0.0002075,2]
[389655091,1759769443235,-155.028891,0.0002075,2]
[389655092,1759769443244,-172.168856,0.0002075,2]
[389655093,1759769443254,-505.620673,0.0002075,2]
[389655094,1759769443263,-150.0,0.00020774,2]
[389655095,1759769443273,-610.99599556,0.00020778,2]
[389655096,1759769443283,-1000.0,0.00020795,2]
[389655097,1759769443292,-8484.88225556,0.000208,2]
[389655098,1759769443302,-561.28100168,0.000208,2]
[389655099,1759769443312,-1600.0,0.00020815,2]
[389655100,1759769443324,-579.0,0.00020822,2]
[389655101,1759769443333,-500.0,0.00020822,2]
[389655102,1759769443343,-500.0,0.00020822,2]
[389655103,1759769443352,-1815.0,0.00020822,2]
[389655104,1759769443361,-500.0,0.00020822,2]
[389655105,1759769443371,-833.0,0.00020822,2]
[389655106,1759769443380,-500.0,0.00020822,2]
[389655107,1759769443389,-500.0,0.00020822,2]
[389655108,1759769443401,-487.0,0.00020822,2]
[389655109,1759769443411,-168.3888056,0.00020822,2]
[389655110,1759769443420,-652.51999526,0.00020849,2]
[389655111,1759769443429,-77532.80040982,0.0002085,2]
[389655112,1759769443439,-151.0,0.0002085,2]
[389655113,1759769443449,-151.0,0.0002085,2]
[389655114,1759769443458,-151.0,0.0002085,2]
[389655115,1759769443467,-227.81125,0.0002085,2]
[389655117,1759769443476,-227.81125,0.0002085,2]
[389655119,1759769443486,-227.81125,0.0002085,2]
[389655121,1759769443495,-227.81125,0.0002085,2]
[389655122,1759769443505,-181.703194,0.0002085,2]
[389655123,1759769443514,-181.703194,0.0002085,2]
[389655124,1759769443524,-181.703194,0.0002085,2]
[389655125,1759769443534,-181.703194,0.0002085,2]
[389655126,1759769443543,-151.0,0.0002085,2]
[389655127,1759769443552,-151.0,0.0002085,2]
[389655128,1759769443561,-151.0,0.0002085,2]
[389655129,1759769443570,-151.0,0.0002085,2]
[389655130,1759769443579,-151.0,0.0002085,2]
[389655131,1759769443589,-151.0,0.0002085,2]
[389655132,1759769443598,-151.0,0.0002085,2]
[389655133,1759769443608,-151.0,0.0002085,2]
[389655134,1759769443618,-151.0,0.0002085,2]
[389655135,1759769443627,-151.0,0.0002085,2]
[389655136,1759769443636,-151.0,0.0002085,2]
[389655137,1759769443646,-151.0,0.0002085,2]
[389655138,1759769443655,-151.0,0.0002085,2]
[389655139,1759769443664,-151.0,0.0002085,2]
[389655140,1759769443675,-151.0,0.0002085,2]
[389655141,1759769443686,-151.0,0.0002085,2]
[389655142,1759769443696,-151.0,0.0002085,2]
[389655143,1759769443705,-2501.1,0.00020866,2]
[389655144,1759769443715,-150.0,0.00020874,4]
[389655145,1759769443724,-150.0,0.00020874,4]
[389655146,1759769443733,-150.0,0.00020874,4]
[389655147,1759769443742,-150.0,0.00020874,4]
[389655148,1759769443753,-105891.33887353,0.000209,30]
[389655149,1759769443763,-177.332975,0.000209,2]
[389655150,1759769443772,-178.086964,0.000209,2]
[389655151,1759769443781,-178.086964,0.000209,2]
[389655152,1759769443790,-178.086964,0.000209,2]
[389655153,1759769443800,-178.086964,0.000209,2]
[389655154,1759769443809,-151.0,0.000209,2]
[389655155,1759769443819,-151.0,0.000209,2]
[389655156,1759769443829,-151.0,0.000209,2]
[389655157,1759769443838,-151.0,0.000209,2]
[389655158,1759769443847,-151.0,0.000209,2]
[389655159,1759769443857,-151.0,0.000209,2]
[389655160,1759769443865,-154.136954,0.000209,2]
[389655161,1759769443875,-151.0,0.000209,2]
[389655162,1759769443884,-151.0,0.000209,2]
[389655163,1759769443894,-151.0,0.000209,2]
[389655164,1759769443903,-227.734835,0.000209,2]
[389655165,1759769443913,-151.0,0.000209,2]
[389655166,1759769443923,-2400.0,0.000209,7]
[389655167,1759769443932,-694.04399495,0.00020919,2]
[389655168,1759769443941,-150.0,0.00020941,2]
[389655169,1759769443951,-151.14,0.00020948,2]
[389655170,1759769443961,-152.31,0.00020949,2]
[389655171,1759769443971,-1025.7,0.00020955,7]
[389655172,1759769443982,-1025.7,0.00020955,7]
[389655173,1759769443991,-9592.1653503,0.00020964,2]
[389655174,1759769444002,-4694.10804441,0.00020968,2]
[389655175,1759769444011,-735.56799466,0.0002099,2]
[389655176,1759769444021,-152.0,0.00020993,23]
[389655177,1759769444031,-300.0,0.00020999,2]
[389655178,1759769444040,-20000.0,0.00021,2]
[389655179,1759769444050,-569.999998,0.00021,2]
[389655180,1759769444060,-1176.82125138,0.00021,2]
[389655181,1759769444069,-194.25119135,0.00021,2]
[389655182,1759769444079,-366490.28147932,0.00021,2]
[389655183,1759769444089,-7069.51671217,0.00021,2]
[389655184,1759769444099,-2000.0,0.00021,2]
[389655185,1759769444108,-3600.0,0.00021,3]
[389655186,1759769444118,-1000.0,0.00021,6]
[389655187,1759769444128,-1000.0,0.00021,4]
[389655188,1759769444137,-708.0,0.00021,5]
[389655189,1759769444149,-13194.53420463,0.00021,3]
[389655190,1759769444159,-8484.88225556,0.00021,2]
[389655191,1759769444168,-32688.4720132,0.00021,2]
[389655192,1759769444178,-41226.41623554,0.00021,2]
[389655193,1759769444189,-3509.71852068,0.00021,2]
[389655194,1759769444198,-160.0,0.00021,7]
[389655195,1759769444208,-370.68887098,0.00021,30]
[389655196,1759769444219,-52460.28933927,0.00021,2]
[389655197,1759769444230,-350.0,0.00021,2]
[389655198,1759769444240,-2000.0,0.00021,2]
[389655199,1759769444250,-211.948056,0.00021,2]
[389655200,1759769444260,-151.0,0.00021,2]
[389655201,1759769444270,-151.0,0.00021,2]
[389655202,1759769444280,-151.0,0.00021,2]
[389655203,1759769444291,-151.0,0.00021,2]
[389655204,1759769444300,-178.086964,0.00021,2]
[389655205,1759769444309,-178.086964,0.00021,2]
[389655206,1759769444319,-178.086964,0.00021,2]
[389655207,1759769444328,-178.086964,0.00021,2]
[389655208,1759769444337,-151.0,0.00021,2]
[389655209,1759769444347,-151.0,0.00021,2]
[389655210,1759769444356,-151.0,0.00021,2]
[389655211,1759769444365,-151.0,0.00021,2]
[389655212,1759769444375,-151.0,0.00021,2]
[389655213,1759769444384,-151.0,0.00021,2]
[389655214,1759769444393,-151.0,0.00021,2]
[389655215,1759769444402,-151.0,0.00021,2]
[389655216,1759769444411,-151.0,0.00021,2]
[389655217,1759769444421,-151.0,0.00021,2]
[389655218,1759769444431,-170.69844,0.00021,2]
[389655219,1759769444440,-151.0,0.00021,2]
[389655220,1759769444449,-370.68887098,0.00021,3]
[389655221,1759769444458,-227.81125,0.00021,2]
[389655222,1759769444468,-227.81125,0.00021,2]
[389655223,1759769444477,-227.81125,0.00021,2]
[389655224,1759769444486,-227.81125,0.00021,2]
[389655225,1759769444495,-181.703194,0.00021,2]
[389655226,1759769444504,-181.703194,0.00021,2]
[389655227,1759769444514,-181.703194,0.00021,2]
[389655228,1759769444523,-181.703194,0.00021,2]
[389655229,1759769444532,-151.0,0.00021,2]
[389655230,1759769444541,-151.0,0.00021,2]
[389655231,1759769444551,-151.0,0.00021,2]
[389655232,1759769444560,-151.0,0.00021,2]
[389655233,1759769444570,-151.0,0.00021,2]
[389655234,1759769444579,-151.0,0.00021,2]
[389655235,1759769444588,-167.451807,0.00021,2]
[389655236,1759769444598,-151.0,0.00021,2]
[389655237,1759769444607,-151.0,0.00021,2]
[389655238,1759769444618,-198.603133,0.00021,2]
[389655239,1759769444627,-151.0,0.00021,2]
[389655240,1759769444636,-2945.33,0.00021028,4]
[389655241,1759769444646,-25000.0,0.00021068,4]
[389655242,1759769444655,-257.31305661,0.00021068,2]
[389655243,1759769444663,-1500.0,0.00021068,2]
[389655244,1759769444672,-1000.53228404,0.00021068,2]
[389655245,1759769444682,-1500.0,0.00021068,2]
[389655246,1759769444693,-1500.0,0.00021068,2]
[389655247,1759769444701,-1500.0,0.00021068,2]
[389655248,1759769444709,-417.42995529,0.00021068,2]
[389655249,1759769444719,-2520.1,0.00021075,4]
[389655250,1759769444728,-1090.0,0.00021088,2]
[389655251,1759769444737,-150.0,0.00021094,4]
[389655252,1759769444746,-579.0,0.00021096,2]
[389655253,1759769444757,-500.0,0.00021096,2]
[389655254,1759769444767,-500.0,0.00021096,2]
[389655255,1759769444776,-1815.0,0.00021096,2]
[389655256,1759769444786,-500.0,0.00021096,2]
[389655257,1759769444795,-833.0,0.00021096,2]
[389655258,1759769444805,-500.0,0.00021096,2]
[389655259,1759769444814,-500.0,0.00021096,2]
[389655260,1759769444823,-487.0,0.00021096,2]
[389655261,1759769444834,-417.0,0.000211,2]
[389655262,1759769444844,-2137.01,0.000211,2]
[389655263,1759769444853,-1448.12,0.000211,2]
[389655264,1759769444863,-22613.96,0.000211,2]
[389655265,1759769444873,-2099.76,0.000211,2]
[389655266,1759769444882,-2301.17,0.00021111,4]
[389655267,1759769444892,-5000.0,0.00021141,4]
[389655268,1759769444902,-229.62400354,0.00021161,2]
[389655269,1759769444912,-150.0,0.00021163,2]
[389655270,1759769444921,-150.0,0.0002117,2]
[389655271,1759769444931,-733.59,0.00021172,2]
[389655272,1759769444940,-9592.1653503,0.00021198,2]
[389655273,1759769444950,-8484.88225556,0.000212,2]
[389655274,1759769444960,-5000.0,0.00021206,4]
[389655275,1759769444969,-1025.7,0.00021229,7]
[389655276,1759769445026,-1025.7,0.00021229,7]
[389655277,1759769445035,-2203.18,0.00021231,4]
[389655278,1759769445044,-150.0,0.0002124,4]
[389655279,1759769445053,-150.0,0.0002124,4]
[389655280,1759769445063,-152.0,0.00021241,24]
[389655281,1759769445073,-5000.0,0.0002131,4]
[389655282,1759769445082,-3817.91627012,0.00021316,4]
[389655283,1759769445253,-381.85405526,0.00021316,4]
[389655284,1759769445310,-364.73999997,0.00021316,4]
[389655285,1759769445321,-435.48967465,0.00021316,4]
[389655286,1759769445330,-69.98032535,0.00021325,4]
[389655287,1759769445341,-754.69967465,0.00021325,4]
[389655288,1759769445350,-6278.5,0.0002137,2]
[389655289,1759769445360,-579.0,0.0002137,2]
[389655290,1759769445369,-500.0,0.0002137,2]
[389655291,1759769445378,-1815.0,0.0002137,2]
[389655292,1759769445387,-500.0,0.0002137,2]
[389655293,1759769445398,-833.0,0.0002137,2]
[389655294,1759769445407,-500.0,0.0002137,2]
[389655295,1759769445416,-500.0,0.0002137,2]
[389655296,1759769445424,-487.0,0.0002137,2]
[389655297,1759769445435,-289.86078649,0.0002137,2]
[389655298,1759769445446,-174.61919141,0.0002137,2]
[389655299,1759769445455,-8484.88225556,0.000214,2]
[389655300,1759769445464,-12415.45981026,0.000214,2]
[389655301,1759769445473,-177.89923269,0.000214,2]
[389655302,1759769445483,-5000.0,0.00021421,4]
[389655303,1759769445493,-150.0,0.00021423,4]
[389655304,1759769445502,-150.0,0.00021423,4]
[389655305,1759769445511,-17688.58,0.00021427,4]
[389655306,1759769445520,-9592.1653503,0.00021432,2]
[389655307,1759769445529,-4694.10804441,0.00021434,2]
[389655308,1759769445538,-300.0,0.00021435,2]
[389655309,1759769445547,-86821.80935392,0.00021436,15]
[389655310,1759769445557,-688.49603898,0.00021436,15]
[389655311,1759769445568,-30625.23964,0.00021436,15]
[389655312,1759769445584,-495.1497182,0.00021436,15]
[389655313,1759769445595,-40673.82636877,0.00021436,15]
[389655314,1759769445606,-5000.0,0.00021465,4]
[389655315,1759769445615,-150.0,0.00021473,2]
[389655316,1759769445624,-152.0,0.00021489,25]
[389655317,1759769445634,-331.31768907,0.0002149,2]
[389655318,1759769445643,-300.0,0.00021499,2]
[389655319,1759769445652,-57163.0498638,0.000215,2]
[389655320,1759769445662,-219.02918581,0.000215,2]
[389655321,1759769445672,-220145.95725153,0.000215,2]
[389655322,1759769445683,-151.0,0.000215,2]
[389655323,1759769445693,-213.405449,0.000215,2]
[389655324,1759769445704,-178.086964,0.000215,2]
[389655326,1759769445715,-178.086964,0.000215,2]
[389655328,1759769445724,-178.086964,0.000215,2]
[389655330,1759769445733,-178.086964,0.000215,2]
[389655332,1759769445742,-151.0,0.000215,2]
[389655334,1759769445751,-151.0,0.000215,2]
[389655336,1759769445762,-151.0,0.000215,2]
[389655339,1759769445771,-151.0,0.000215,2]
[389655341,1759769445780,-239.629404,0.000215,2]
[389655343,1759769445789,-151.0,0.000215,2]
[389655345,1759769445798,-151.0,0.000215,2]
[389655347,1759769445807,-151.0,0.000215,2]
[389655349,1759769445816,-283.764071,0.000215,2]
[389655353,1759769445825,-227.81125,0.000215,2]
[389655355,1759769445834,-227.81125,0.000215,2]
[389655357,1759769445843,-227.81125,0.000215,2]
[389655359,1759769445852,-227.81125,0.000215,2]
[389655361,1759769445861,-181.703194,0.000215,2]
[389655362,1759769445870,-181.703194,0.000215,2]
[389655364,1759769445878,-181.703194,0.000215,2]
[389655366,1759769445886,-181.703194,0.000215,2]
[389655368,1759769445895,-151.0,0.000215,2]
[389655369,1759769445905,-151.0,0.000215,2]
[389655370,1759769445914,-204.11676,0.000215,2]
[389655371,1759769445924,-151.0,0.000215,2]
[389655372,1759769445932,-151.0,0.000215,2]
[389655373,1759769445942,-151.0,0.000215,2]
[389655374,1759769445951,-151.0,0.000215,2]
[389655375,1759769445960,-151.0,0.000215,2]
[389655376,1759769445969,-1025.7,0.00021503,7]
[389655377,1759769445978,-1025.7,0.00021503,7]
[389655378,1759769445986,-1980.0,0.00021504,4]
[389655379,1759769445996,-5000.0,0.00021516,4]
[389655380,1759769446005,-25000.0,0.00021522,4]
[389655381,1759769446014,-150.0,0.00021533,4]
[389655382,1759769446023,-194.38126753,0.00021556,2]
[389655383,1759769446032,-923.93,0.00021564,4]
[389655384,1759769446041,-1125.61,0.00021573,4]
[389655385,1759769446051,-5000.0,0.00021577,4]
[389655386,1759769446060,-17006.89070283,0.00021583,4]
[389655387,1759769446100,-1181.0,0.00016775,2]
[389655388,1759769446109,-3341.95257519,0.00021583,4]
[389655389,1759769446121,-547.12656515,0.00021583,4]
[389655390,1759769446134,-4104.03015683,0.00021583,4]
[389655391,1759769446143,-5000.0,0.00021583,4]
[389655392,1759769446152,-5000.0,0.00021587,4]
[389655393,1759769446161,-150.0,0.00021606,4]
[389655394,1759769446170,-150.0,0.00021606,4]
[389655395,1759769446179,-1597.25006707,0.00021616,2]
[389655396,1759769446189,-2000.0,0.00021616,2]
[389655397,1759769446198,-2000.0,0.00021616,2]
[389655398,1759769446207,-1834.18170033,0.00021616,2]
[389655399,1759769446216,-5000.0,0.00021628,4]
[389655400,1759769446226,-579.0,0.00021644,2]
[389655401,1759769446235,-500.0,0.00021644,2]
[389655402,1759769446245,-1815.0,0.00021644,2]
[389655403,1759769446254,-500.0,0.00021644,2]